[Event "Titled Tuesday Blitz October 11 Early 2022"]
[White "Barria Zuniga, Daniel"]
[Black "Kuznetsova, Olga"]
[WhiteFideId "3400816"]
[BlackFideId "4191323"]
[WhiteElo "2414"]
[BlackElo "2134"]
[Result "0-1"]
[Round "03"]
[TimeControl "180+1"]
[Date "2022.10.12"]
[WhiteClock "0:00:05"]
[BlackClock "0:00:22"]

1. d4 {[%clk 0:03:00]}  Nf6 {[%clk 0:02:59]} 2. c4 {[%clk 0:03:00]}  e6 {[%clk 0:03:00]} 3. Nf3 {[%clk 0:02:59]}  d5 {[%clk 0:03:00]} 4. Nc3 {[%clk 0:02:59]}  Be7 {[%clk 0:03:00]} 5. Bg5 {[%clk 0:02:57]}  O-O {[%clk 0:03:00]} 6. Qc2 {[%clk 0:02:57]}  Nbd7 {[%clk 0:02:57]} 7. e3 {[%clk 0:02:56]}  c6 {[%clk 0:02:55]} 8. O-O-O {[%clk 0:02:53]}  a5 {[%clk 0:02:51]} 9. Kb1 {[%clk 0:02:53]}  b6 {[%clk 0:02:47]} 10. Ne5 {[%clk 0:02:46]}  Nxe5 {[%clk 0:02:44]} 11. dxe5 {[%clk 0:02:47]}  Nd7 {[%clk 0:02:44]} 12. Bxe7 {[%clk 0:02:47]}  Qxe7 {[%clk 0:02:44]} 13. f4 {[%clk 0:02:47]}  a4 {[%clk 0:02:25]} 14. cxd5 {[%clk 0:02:39]}  cxd5 {[%clk 0:02:23]} 15. Bd3 {[%clk 0:02:26]}  Nc5 {[%clk 0:02:23]} 16. Bxh7+ {[%clk 0:02:22]}  Kh8 {[%clk 0:02:23]} 17. Bd3 {[%clk 0:02:23]}  a3 {[%clk 0:02:16]} 18. b3 {[%clk 0:02:21]}  Bd7 {[%clk 0:02:10]} 19. Qe2 {[%clk 0:02:19]}  Nxd3 {[%clk 0:02:05]} 20. Qxd3 {[%clk 0:02:18]}  Rfc8 {[%clk 0:02:05]} 21. Ne2 {[%clk 0:02:13]}  Qb4 {[%clk 0:02:02]} 22. Nd4 {[%clk 0:02:11]}  Rc3 {[%clk 0:01:55]} 23. Qd2 {[%clk 0:02:10]}  Rac8 {[%clk 0:01:54]} 24. h4 {[%clk 0:01:54]}  Ba4 {[%clk 0:01:33]} 25. Rhe1 {[%clk 0:00:38]}  Bxb3 {[%clk 0:01:29]} 26. axb3 {[%clk 0:00:34]}  Rxb3+ {[%clk 0:01:29]} 27. Ka1 {[%clk 0:00:33]}  Rb1+ {[%clk 0:01:30]} 28. Rxb1 {[%clk 0:00:32]}  Qxd2 {[%clk 0:01:30]} 29. Re2 {[%clk 0:00:31]}  Qc3+ {[%clk 0:01:21]} 30. Ka2 {[%clk 0:00:31]}  Qc4+ {[%clk 0:01:21]} 31. Ka1 {[%clk 0:00:29]}  Ra8 {[%clk 0:01:12]} 32. Rc2 {[%clk 0:00:26]}  Qd3 {[%clk 0:01:10]} 33. Rb3 {[%clk 0:00:26]}  Qd1+ {[%clk 0:01:07]} 34. Ka2 {[%clk 0:00:26]}  Ra4 {[%clk 0:00:59]} 35. Rbc3 {[%clk 0:00:22]}  Rb4 {[%clk 0:00:53]} 36. Kxa3 {[%clk 0:00:20]}  Rc4 {[%clk 0:00:35]} 37. Kb3 {[%clk 0:00:18]}  Qb1+ {[%clk 0:00:31]} 38. Rb2 {[%clk 0:00:17]}  Qd1+ {[%clk 0:00:29]} 39. Rbc2 {[%clk 0:00:16]}  Rxc3+ {[%clk 0:00:25]} 40. Kxc3 {[%clk 0:00:15]}  Qe1+ {[%clk 0:00:25]} 41. Kd3 {[%clk 0:00:16]}  Qxh4 {[%clk 0:00:26]} 42. Rb2 {[%clk 0:00:07]}  Qh1 {[%clk 0:00:22]} 43. Rc2 {[%clk 0:00:06]}  Qb1 {[%clk 0:00:21]} 44. Kd2 {[%clk 0:00:06]}  b5 {[%clk 0:00:21]} 45. Nf3 {[%clk 0:00:04]}  b4 {[%clk 0:00:21]} 46. Ng5 {[%clk 0:00:04]}  g6 {[%clk 0:00:19]} 47. Rc8+ {[%clk 0:00:04]}  Kg7 {[%clk 0:00:20]} 48. Rc7 {[%clk 0:00:04]}  b3 {[%clk 0:00:18]} 49. Rxf7+ {[%clk 0:00:03]}  Kg8 {[%clk 0:00:18]} 50. Rb7 {[%clk 0:00:03]}  Qb2+ {[%clk 0:00:19]} 51. Ke1 {[%clk 0:00:01]}  Qc1+ {[%clk 0:00:19]} 52. Kf2 {[%clk 0:00:02]}  Qc2+ {[%clk 0:00:19]} 53. Kf3 {[%clk 0:00:02]}  b2 {[%clk 0:00:19]} 54. Rb8+ {[%clk 0:00:02]}  Kg7 {[%clk 0:00:20]} 55. Rb7+ {[%clk 0:00:03]}  Kf8 {[%clk 0:00:20]} 56. Rb8+ {[%clk 0:00:03]}  Ke7 {[%clk 0:00:20]} 57. Rb7+ {[%clk 0:00:03]}  Kd8 {[%clk 0:00:21]} 58. Nxe6+ {[%clk 0:00:04]}  Kc8 {[%clk 0:00:21]} 59. Rc7+ {[%clk 0:00:04]}  Qxc7 {[%clk 0:00:21]} 60. Nxc7 {[%clk 0:00:05]}  Kxc7 {[%clk 0:00:22]} 0-1


[Site "https://www.chess.com"]

[Event "Titled Tuesday Blitz October 11 Early 2022"]
[White "Beerdsen, Thomas"]
[Black "Turayev, Shahruh"]
[WhiteFideId "1030108"]
[BlackFideId "14003856"]
[WhiteElo "2567"]
[BlackElo "2628"]
[Result "1-0"]
[Round "03"]
[TimeControl "180+1"]
[Date "2022.10.12"]
[WhiteClock "0:00:45"]
[BlackClock "0:00:01"]

1. e4 {[%clk 0:02:59]}  e6 {[%clk 0:03:00]} 2. c4 {[%clk 0:02:58]}  d5 {[%clk 0:03:00]} 3. cxd5 {[%clk 0:02:59]}  exd5 {[%clk 0:03:01]} 4. Qa4+ {[%clk 0:03:00]}  Qd7 {[%clk 0:02:54]} 5. Qxd7+ {[%clk 0:02:56]}  Bxd7 {[%clk 0:02:55]} 6. exd5 {[%clk 0:02:55]}  Nf6 {[%clk 0:02:55]} 7. Nc3 {[%clk 0:02:55]}  Bd6 {[%clk 0:02:35]} 8. Nf3 {[%clk 0:02:47]}  O-O {[%clk 0:02:34]} 9. Be2 {[%clk 0:02:48]}  Bg4 {[%clk 0:02:34]} 10. O-O {[%clk 0:02:46]}  Nbd7 {[%clk 0:02:34]} 11. h3 {[%clk 0:02:42]}  Bh5 {[%clk 0:02:34]} 12. g4 {[%clk 0:02:35]}  Bg6 {[%clk 0:02:34]} 13. g5 {[%clk 0:02:35]}  Ne4 {[%clk 0:02:34]} 14. d3 {[%clk 0:02:25]}  Nec5 {[%clk 0:02:30]} 15. Rd1 {[%clk 0:02:19]}  Nb6 {[%clk 0:02:24]} 16. Be3 {[%clk 0:02:13]}  Rad8 {[%clk 0:02:11]} 17. Rac1 {[%clk 0:02:09]}  Nca4 {[%clk 0:02:06]} 18. Nxa4 {[%clk 0:02:04]}  Nxa4 {[%clk 0:02:06]} 19. Bd4 {[%clk 0:01:48]}  Rfe8 {[%clk 0:02:01]} 20. Bf1 {[%clk 0:01:47]}  Bf4 {[%clk 0:01:55]} 21. Rc4 {[%clk 0:01:47]}  b5 {[%clk 0:01:54]} 22. Rb4 {[%clk 0:01:35]}  a6 {[%clk 0:01:08]} 23. Bxg7 {[%clk 0:01:31]}  Bd6 {[%clk 0:01:03]} 24. Rxa4 {[%clk 0:01:31]}  bxa4 {[%clk 0:01:03]} 25. Bf6 {[%clk 0:01:18]}  Be7 {[%clk 0:01:03]} 26. Rc1 {[%clk 0:01:07]}  Bxf6 {[%clk 0:01:00]} 27. gxf6 {[%clk 0:01:08]}  Rxd5 {[%clk 0:00:57]} 28. Rxc7 {[%clk 0:01:09]}  Bh5 {[%clk 0:00:23]} 29. Nd2 {[%clk 0:01:06]}  Bg6 {[%clk 0:00:18]} 30. Nc4 {[%clk 0:01:03]}  Bxd3 {[%clk 0:00:17]} 31. Bxd3 {[%clk 0:01:03]}  Rxd3 {[%clk 0:00:18]} 32. Ne5 {[%clk 0:01:04]}  Rd6 {[%clk 0:00:16]} 33. Ng4 {[%clk 0:00:56]}  Kf8 {[%clk 0:00:11]} 34. f4 {[%clk 0:00:44]}  h5 {[%clk 0:00:11]} 35. Ne5 {[%clk 0:00:45]}  Rb8 {[%clk 0:00:03]} 36. Rxf7+ {[%clk 0:00:44]}  Kg8 {[%clk 0:00:02]} 37. Rg7+ {[%clk 0:00:43]}  Kf8 {[%clk 0:00:02]} 38. Ng6+ {[%clk 0:00:44]}  Ke8 {[%clk 0:00:01]} 39. f7+ {[%clk 0:00:45]} 1-0


[Site "https://www.chess.com"]

[Event "Titled Tuesday Blitz October 11 Early 2022"]
[White "Begunov, Konstantin"]
[Black "Aaditya Dhingra"]
[WhiteFideId "4118510"]
[BlackFideId "25678191"]
[WhiteElo "2225"]
[BlackElo "2054"]
[Result "1-0"]
[Round "03"]
[TimeControl "180+1"]
[Date "2022.10.12"]
[WhiteClock "0:00:32"]
[BlackClock "0:00:17"]

1. d4 {[%clk 0:02:56]}  Nf6 {[%clk 0:02:58]} 2. c4 {[%clk 0:02:55]}  e6 {[%clk 0:02:47]} 3. Nf3 {[%clk 0:02:55]}  Bb4+ {[%clk 0:02:45]} 4. Nbd2 {[%clk 0:02:54]}  b6 {[%clk 0:02:45]} 5. a3 {[%clk 0:02:54]}  Bxd2+ {[%clk 0:02:44]} 6. Bxd2 {[%clk 0:02:55]}  Bb7 {[%clk 0:02:44]} 7. Bg5 {[%clk 0:02:55]}  d6 {[%clk 0:02:43]} 8. e3 {[%clk 0:02:55]}  Nbd7 {[%clk 0:02:43]} 9. Qc2 {[%clk 0:02:52]}  h6 {[%clk 0:02:43]} 10. Bh4 {[%clk 0:02:51]}  g5 {[%clk 0:02:43]} 11. Bg3 {[%clk 0:02:52]}  Ne4 {[%clk 0:02:44]} 12. Bd3 {[%clk 0:02:51]}  f5 {[%clk 0:02:44]} 13. O-O {[%clk 0:02:39]}  Ndf6 {[%clk 0:02:35]} 14. Nd2 {[%clk 0:02:33]}  Nxg3 {[%clk 0:02:33]} 15. fxg3 {[%clk 0:02:31]}  Qe7 {[%clk 0:02:29]} 16. e4 {[%clk 0:02:27]}  fxe4 {[%clk 0:02:26]} 17. Nxe4 {[%clk 0:02:26]}  Bxe4 {[%clk 0:02:19]} 18. Bxe4 {[%clk 0:02:27]}  O-O-O {[%clk 0:02:09]} 19. Bc6 {[%clk 0:02:23]}  Nd7 {[%clk 0:01:51]} 20. Qa4 {[%clk 0:01:31]}  Nb8 {[%clk 0:01:49]} 21. d5 {[%clk 0:01:31]}  a6 {[%clk 0:01:25]} 22. Rfe1 {[%clk 0:01:17]}  e5 {[%clk 0:01:23]} 23. b4 {[%clk 0:01:11]}  Rhf8 {[%clk 0:01:21]} 24. Rac1 {[%clk 0:01:03]}  Rf6 {[%clk 0:01:11]} 25. c5 {[%clk 0:01:01]}  b5 {[%clk 0:00:50]} 26. Qa5 {[%clk 0:00:59]}  dxc5 {[%clk 0:00:42]} 27. bxc5 {[%clk 0:00:57]}  Rdf8 {[%clk 0:00:29]} 28. a4 {[%clk 0:00:56]}  b4 {[%clk 0:00:19]} 29. d6 {[%clk 0:00:33]}  Nxc6 {[%clk 0:00:17]} 30. Qxa6+ {[%clk 0:00:32]} 1-0


[Site "https://www.chess.com"]

[Event "Titled Tuesday Blitz October 11 Early 2022"]
[White "Bharath Subramaniyam H"]
[Black "Hristodoulou, Panagiotis"]
[WhiteFideId "46634827"]
[BlackFideId "4214340"]
[WhiteElo "2395"]
[BlackElo "2272"]
[Result "0-1"]
[Round "03"]
[TimeControl "180+1"]
[Date "2022.10.11"]
[WhiteClock "0:00:29"]
[BlackClock "0:00:04"]

1. d4 {[%clk 0:02:58]}  Nf6 {[%clk 0:02:58]} 2. Nc3 {[%clk 0:02:58]}  d5 {[%clk 0:02:58]} 3. Bf4 {[%clk 0:02:59]}  c5 {[%clk 0:02:58]} 4. e4 {[%clk 0:02:58]}  cxd4 {[%clk 0:02:42]} 5. Qxd4 {[%clk 0:02:58]}  Nc6 {[%clk 0:02:33]} 6. Bb5 {[%clk 0:02:58]}  Bd7 {[%clk 0:02:33]} 7. Bxc6 {[%clk 0:02:58]}  Bxc6 {[%clk 0:02:34]} 8. e5 {[%clk 0:02:59]}  Nd7 {[%clk 0:02:29]} 9. e6 {[%clk 0:02:59]}  fxe6 {[%clk 0:02:28]} 10. Nf3 {[%clk 0:02:59]}  Qb6 {[%clk 0:02:26]} 11. Qd2 {[%clk 0:02:59]}  g6 {[%clk 0:02:20]} 12. Be3 {[%clk 0:02:55]}  Qc7 {[%clk 0:02:18]} 13. Nd4 {[%clk 0:02:48]}  Rc8 {[%clk 0:01:48]} 14. Nxe6 {[%clk 0:02:47]}  Qd6 {[%clk 0:01:46]} 15. Nxf8 {[%clk 0:02:46]}  Rxf8 {[%clk 0:01:45]} 16. O-O {[%clk 0:02:47]}  e5 {[%clk 0:01:43]} 17. Bh6 {[%clk 0:02:46]}  Rf7 {[%clk 0:01:41]} 18. Ne4 {[%clk 0:02:45]}  Qe7 {[%clk 0:01:36]} 19. Ng5 {[%clk 0:02:38]}  Rf5 {[%clk 0:01:36]} 20. Rfe1 {[%clk 0:02:38]}  Nf6 {[%clk 0:01:21]} 21. Nf3 {[%clk 0:02:29]}  Ne4 {[%clk 0:01:00]} 22. Qd3 {[%clk 0:02:29]}  Kf7 {[%clk 0:00:56]} 23. g4 {[%clk 0:02:23]}  Rf6 {[%clk 0:00:39]} 24. Ng5+ {[%clk 0:02:20]}  Kg8 {[%clk 0:00:33]} 25. Nxe4 {[%clk 0:02:20]}  dxe4 {[%clk 0:00:32]} 26. Qb3+ {[%clk 0:02:21]}  Rf7 {[%clk 0:00:27]} 27. Bd2 {[%clk 0:01:54]}  Rf8 {[%clk 0:00:17]} 28. Bb4 {[%clk 0:01:16]}  Qf6 {[%clk 0:00:11]} 29. Re2 {[%clk 0:01:13]}  Rd8 {[%clk 0:00:08]} 30. Qe3 {[%clk 0:01:12]}  Qe6 {[%clk 0:00:07]} 31. Qg5 {[%clk 0:01:06]}  Rdd7 {[%clk 0:00:07]} 32. Bc3 {[%clk 0:01:04]}  Rf4 {[%clk 0:00:05]} 33. h3 {[%clk 0:01:03]}  Rf3 {[%clk 0:00:05]} 34. Qxe5 {[%clk 0:00:56]}  Qxe5 {[%clk 0:00:05]} 35. Bxe5 {[%clk 0:00:57]}  Rxh3 {[%clk 0:00:04]} 36. Bg3 {[%clk 0:00:58]}  e3 {[%clk 0:00:03]} 37. fxe3 {[%clk 0:00:42]}  Rh1+ {[%clk 0:00:02]} 38. Kf2 {[%clk 0:00:40]}  Rxa1 {[%clk 0:00:03]} 39. e4 {[%clk 0:00:40]}  Rxa2 {[%clk 0:00:03]} 40. c3 {[%clk 0:00:38]}  Ra6 {[%clk 0:00:03]} 41. e5 {[%clk 0:00:38]}  Bd5 {[%clk 0:00:03]} 42. Ke3 {[%clk 0:00:36]}  Be6 {[%clk 0:00:04]} 43. Kf4 {[%clk 0:00:35]}  Rc6 {[%clk 0:00:04]} 44. Kg5 {[%clk 0:00:35]}  Kg7 {[%clk 0:00:05]} 45. Rh2 {[%clk 0:00:29]}  Rc4 {[%clk 0:00:04]} 0-1


[Site "https://www.chess.com"]

[Event "Titled Tuesday Blitz October 11 Early 2022"]
[White "Bilan, Danila"]
[Black "Samant Aditya S"]
[WhiteFideId "24161918"]
[BlackFideId "35080580"]
[WhiteElo "2203"]
[BlackElo "2367"]
[Result "1-0"]
[Round "03"]
[TimeControl "180+1"]
[Date "2022.10.12"]
[WhiteClock "0:00:07"]
[BlackClock "0:00:02"]

1. d4 {[%clk 0:02:58]}  Nf6 {[%clk 0:03:00]} 2. Nf3 {[%clk 0:02:58]}  e6 {[%clk 0:03:00]} 3. g3 {[%clk 0:02:56]}  b5 {[%clk 0:02:59]} 4. Bg2 {[%clk 0:02:57]}  Bb7 {[%clk 0:03:00]} 5. O-O {[%clk 0:02:56]}  c5 {[%clk 0:03:00]} 6. a4 {[%clk 0:02:51]}  b4 {[%clk 0:02:59]} 7. c4 {[%clk 0:02:50]}  cxd4 {[%clk 0:02:59]} 8. Qxd4 {[%clk 0:02:47]}  Nc6 {[%clk 0:02:59]} 9. Qd1 {[%clk 0:02:45]}  Bc5 {[%clk 0:02:51]} 10. b3 {[%clk 0:02:36]}  O-O {[%clk 0:02:50]} 11. Bb2 {[%clk 0:02:35]}  a5 {[%clk 0:02:42]} 12. Nbd2 {[%clk 0:02:24]}  d6 {[%clk 0:02:32]} 13. Qc2 {[%clk 0:02:20]}  Qe7 {[%clk 0:02:30]} 14. Rad1 {[%clk 0:02:16]}  Rfd8 {[%clk 0:02:27]} 15. Ng5 {[%clk 0:01:46]}  h6 {[%clk 0:01:26]} 16. Nge4 {[%clk 0:01:37]}  Nxe4 {[%clk 0:01:26]} 17. Nxe4 {[%clk 0:01:33]}  Ba7 {[%clk 0:01:27]} 18. Qb1 {[%clk 0:00:56]}  Rac8 {[%clk 0:01:20]} 19. Nd2 {[%clk 0:00:49]}  Ba8 {[%clk 0:00:40]} 20. Qa1 {[%clk 0:00:47]}  Qf8 {[%clk 0:00:37]} 21. Nf3 {[%clk 0:00:47]}  Ne7 {[%clk 0:00:35]} 22. Rd2 {[%clk 0:00:40]}  Bc5 {[%clk 0:00:24]} 23. Rfd1 {[%clk 0:00:39]}  Nf5 {[%clk 0:00:16]} 24. Nd4 {[%clk 0:00:35]}  Bxd4 {[%clk 0:00:12]} 25. Bxd4 {[%clk 0:00:34]}  Bxg2 {[%clk 0:00:12]} 26. Kxg2 {[%clk 0:00:35]}  Qe8 {[%clk 0:00:13]} 27. Bb6 {[%clk 0:00:23]}  Qc6+ {[%clk 0:00:13]} 28. e4 {[%clk 0:00:20]}  Nh4+ {[%clk 0:00:07]} 29. gxh4 {[%clk 0:00:16]}  Qxb6 {[%clk 0:00:07]} 30. Qd4 {[%clk 0:00:16]}  Qc6 {[%clk 0:00:06]} 31. f3 {[%clk 0:00:16]}  Kf8 {[%clk 0:00:05]} 32. h5 {[%clk 0:00:16]}  Qc7 {[%clk 0:00:05]} 33. Rd3 {[%clk 0:00:13]}  Qe7 {[%clk 0:00:06]} 34. Qe3 {[%clk 0:00:13]}  Rc5 {[%clk 0:00:06]} 35. Qxc5 {[%clk 0:00:13]}  Qh4 {[%clk 0:00:03]} 36. Qf2 {[%clk 0:00:13]}  Qg5+ {[%clk 0:00:03]} 37. Qg3 {[%clk 0:00:13]}  Qxh5 {[%clk 0:00:03]} 38. Rxd6 {[%clk 0:00:13]}  Re8 {[%clk 0:00:04]} 39. Rd8 {[%clk 0:00:13]}  Rxd8 {[%clk 0:00:05]} 40. Rxd8+ {[%clk 0:00:13]}  Ke7 {[%clk 0:00:06]} 41. Qd6+ {[%clk 0:00:13]}  Kf6 {[%clk 0:00:06]} 42. Qd4+ {[%clk 0:00:14]}  Ke7 {[%clk 0:00:05]} 43. Rd7+ {[%clk 0:00:14]}  Ke8 {[%clk 0:00:05]} 44. Qd2 {[%clk 0:00:10]}  Qg6+ {[%clk 0:00:04]} 45. Kf2 {[%clk 0:00:10]}  Qf6 {[%clk 0:00:04]} 46. Rb7 {[%clk 0:00:08]}  Qh4+ {[%clk 0:00:04]} 47. Ke3 {[%clk 0:00:07]}  Qg5+ {[%clk 0:00:04]} 48. Kd3 {[%clk 0:00:08]}  Qf6 {[%clk 0:00:04]} 49. Kc2 {[%clk 0:00:07]}  g5 {[%clk 0:00:02]} 50. e5 {[%clk 0:00:05]}  Qf5+ {[%clk 0:00:02]} 51. Qd3 {[%clk 0:00:06]}  Qxe5 {[%clk 0:00:02]} 52. Qd7+ {[%clk 0:00:06]}  Kf8 {[%clk 0:00:02]} 53. Qxf7# {[%clk 0:00:07]} 1-0


[Site "https://www.chess.com"]

[Event "Titled Tuesday Blitz October 11 Early 2022"]
[White "Biriukov, Ilja"]
[Black "Urbina Perez, Juan Antonio"]
[WhiteFideId "4113373"]
[BlackFideId "2217368"]
[WhiteElo "2426"]
[BlackElo "2197"]
[Result "0-1"]
[Round "03"]
[TimeControl "180+1"]
[Date "2022.10.12"]
[WhiteClock "0:00:28"]
[BlackClock "0:01:29"]

1. d3 {[%clk 0:03:00]}  d5 {[%clk 0:02:56]} 2. d4 {[%clk 0:03:01]}  Nf6 {[%clk 0:02:54]} 3. c3 {[%clk 0:03:02]}  c5 {[%clk 0:02:53]} 4. Nf3 {[%clk 0:03:03]}  cxd4 {[%clk 0:02:54]} 5. cxd4 {[%clk 0:03:03]}  Nc6 {[%clk 0:02:55]} 6. Nc3 {[%clk 0:03:02]}  a6 {[%clk 0:02:55]} 7. Bf4 {[%clk 0:02:59]}  Bf5 {[%clk 0:02:55]} 8. Qb3 {[%clk 0:02:53]}  Na5 {[%clk 0:02:54]} 9. Qa4+ {[%clk 0:02:51]}  Bd7 {[%clk 0:02:52]} 10. Qc2 {[%clk 0:02:46]}  Rc8 {[%clk 0:02:52]} 11. e3 {[%clk 0:02:42]}  e6 {[%clk 0:02:46]} 12. Be2 {[%clk 0:02:38]}  Be7 {[%clk 0:02:44]} 13. O-O {[%clk 0:02:38]}  O-O {[%clk 0:02:45]} 14. Ne5 {[%clk 0:02:37]}  Ne4 {[%clk 0:02:45]} 15. Nxd7 {[%clk 0:02:26]}  Qxd7 {[%clk 0:02:45]} 16. Qd3 {[%clk 0:02:24]}  Nxc3 {[%clk 0:02:44]} 17. bxc3 {[%clk 0:02:25]}  Bd6 {[%clk 0:02:37]} 18. Bg5 {[%clk 0:02:19]}  Be7 {[%clk 0:02:36]} 19. Bf4 {[%clk 0:02:18]}  Bd6 {[%clk 0:02:36]} 20. Bg5 {[%clk 0:02:18]}  h6 {[%clk 0:02:37]} 21. Bh4 {[%clk 0:02:18]}  Rc7 {[%clk 0:02:37]} 22. f3 {[%clk 0:02:03]}  Rfc8 {[%clk 0:02:36]} 23. Rac1 {[%clk 0:02:02]}  Qa4 {[%clk 0:02:32]} 24. e4 {[%clk 0:01:58]}  Qa3 {[%clk 0:02:20]} 25. e5 {[%clk 0:01:47]}  Rxc3 {[%clk 0:02:14]} 26. Rxc3 {[%clk 0:01:46]}  Rxc3 {[%clk 0:02:15]} 27. Qd2 {[%clk 0:01:46]}  Bf8 {[%clk 0:02:11]} 28. Be1 {[%clk 0:01:30]}  Bb4 {[%clk 0:01:58]} 29. Qf4 {[%clk 0:01:12]}  Rc8 {[%clk 0:01:53]} 30. Bf2 {[%clk 0:01:04]}  Qxa2 {[%clk 0:01:45]} 31. Bd3 {[%clk 0:01:00]}  Qd2 {[%clk 0:01:42]} 32. Qxd2 {[%clk 0:00:46]}  Bxd2 {[%clk 0:01:43]} 33. Rb1 {[%clk 0:00:46]}  b5 {[%clk 0:01:41]} 34. f4 {[%clk 0:00:43]}  Rc1+ {[%clk 0:01:39]} 35. Rxc1 {[%clk 0:00:42]}  Bxc1 {[%clk 0:01:40]} 36. f5 {[%clk 0:00:43]}  Nc4 {[%clk 0:01:39]} 37. fxe6 {[%clk 0:00:42]}  fxe6 {[%clk 0:01:40]} 38. h4 {[%clk 0:00:38]}  a5 {[%clk 0:01:39]} 39. g4 {[%clk 0:00:37]}  a4 {[%clk 0:01:38]} 40. Bc2 {[%clk 0:00:35]}  Ne3 {[%clk 0:01:34]} 41. Bd3 {[%clk 0:00:33]}  b4 {[%clk 0:01:32]} 42. g5 {[%clk 0:00:29]}  hxg5 {[%clk 0:01:30]} 43. hxg5 {[%clk 0:00:30]}  a3 {[%clk 0:01:29]} 44. Bb1 {[%clk 0:00:28]}  b3 {[%clk 0:01:29]} 0-1


[Site "https://www.chess.com"]

[Event "Titled Tuesday Blitz October 11 Early 2022"]
[White "Boraso, Alessio"]
[Black "Prokofiev, Valentyn"]
[WhiteFideId "848077"]
[BlackFideId "14160161"]
[WhiteElo "2286"]
[BlackElo "2259"]
[Result "0-1"]
[Round "03"]
[TimeControl "180+1"]
[Date "2022.10.12"]
[WhiteClock "0:00:01"]
[BlackClock "0:00:05"]

1. c4 {[%clk 0:03:00]}  g6 {[%clk 0:02:59]} 2. g3 {[%clk 0:03:00]}  Bg7 {[%clk 0:02:59]} 3. Bg2 {[%clk 0:03:01]}  c5 {[%clk 0:03:00]} 4. Nc3 {[%clk 0:03:01]}  Nc6 {[%clk 0:03:00]} 5. d3 {[%clk 0:03:01]}  d6 {[%clk 0:03:00]} 6. h4 {[%clk 0:02:54]}  h5 {[%clk 0:02:40]} 7. Nh3 {[%clk 0:02:52]}  e5 {[%clk 0:02:40]} 8. Nd5 {[%clk 0:02:46]}  Nh6 {[%clk 0:02:35]} 9. Bg5 {[%clk 0:02:13]}  f6 {[%clk 0:02:30]} 10. Bd2 {[%clk 0:02:13]}  O-O {[%clk 0:02:25]} 11. Qc1 {[%clk 0:02:07]}  Kh7 {[%clk 0:02:22]} 12. Be4 {[%clk 0:02:01]}  Nd4 {[%clk 0:01:59]} 13. Ng5+ {[%clk 0:01:42]}  fxg5 {[%clk 0:01:43]} 14. hxg5 {[%clk 0:01:42]}  Nhf5 {[%clk 0:01:29]} 15. g4 {[%clk 0:01:37]}  Nxe2 {[%clk 0:01:27]} 16. Qd1 {[%clk 0:01:06]}  Nfg3 {[%clk 0:01:03]} 17. gxh5 {[%clk 0:00:59]}  Nxe4 {[%clk 0:00:38]} 18. hxg6+ {[%clk 0:00:52]}  Kg8 {[%clk 0:00:34]} 19. Qxe2 {[%clk 0:00:50]}  Nxf2 {[%clk 0:00:19]} 20. Qh5 {[%clk 0:00:35]}  Nxd3+ {[%clk 0:00:19]} 21. Kd1 {[%clk 0:00:24]}  Bg4+ {[%clk 0:00:19]} 22. Kc2 {[%clk 0:00:13]}  Bxh5 {[%clk 0:00:19]} 23. Rxh5 {[%clk 0:00:10]}  Nf4 {[%clk 0:00:10]} 24. Bxf4 {[%clk 0:00:11]}  exf4 {[%clk 0:00:11]} 25. Re1 {[%clk 0:00:11]}  Re8 {[%clk 0:00:08]} 26. Rf1 {[%clk 0:00:05]}  Re4 {[%clk 0:00:07]} 27. Rfh1 {[%clk 0:00:02]}  Qe8 {[%clk 0:00:05]} 28. Rh7 {[%clk 0:00:02]}  Qxg6 {[%clk 0:00:04]} 29. R1h4 {[%clk 0:00:01]}  Re2+ {[%clk 0:00:05]} 30. Kb3 {[%clk 0:00:01]}  Qc2+ {[%clk 0:00:05]} 0-1


[Site "https://www.chess.com"]